[Event "IIFL Wealth  4th Mumbai Junior U-13"]
[Site "Mumbai"]
[Date "2019.01.05"]
[Round "7"]
[White "Sarvade Mihiir"]
[Black "Vivaan Vijay Saraogi"]
[Result "1-0"]
[ECO "E44"]
[WhiteElo "1563"]
[BlackElo "1290"]
[Annotator "NA RC"]
[PlyCount "99"]
[EventDate "2018.12.30"]
[EventType "swiss"]
[EventCountry "IND"]
[SourceTitle "playchess.com"]
[Source "ChessBase"]
[SourceQuality "1"]
[TimeControl "40/5400+30:1800+30"]

1. d4 {[%emt 0:00:43]} Nf6 {[%emt 0:00:15]} 2. c4 {[%emt 0:00:06]} e6 {[%emt 0:00:06]} 3. Nc3 {[%emt 0:00:04]} Bb4 {[%emt 0:00:08]} 4. e3 {[%emt 0:00:25]} b6 {[%emt 0:00:14]} 5. Nge2 {[%emt 0:00:07]} Bb7 {[%emt 0:00:21]} 6. a3 {[%emt 0:00:54]} Be7 {[%emt 0:00:42]} 7. d5 {[%emt 0:05:19]} O-O {[%emt 0:06:50]} 8. g3 {[%emt 0:08:41]} d6 {[%emt 0:02:00]} 9. Bg2 {[%emt 0:00:56]} Nbd7 {[%emt 0:25:17]} 10. O-O {[%emt 0:07:14]} a5 {[%emt 0:05:56]} 11. dxe6 {[%emt 0:06:48]} Bxg2 {[%emt 0:00:56]} 12. exf7+ {[%emt 0:01:49]} Rxf7 {[%emt 0:00:12]} 13. Kxg2 Qc8 14. Nd4 {[%emt 0:12:21]} Ne5 {[%emt 0:08:58]} 15. b3 {[%emt 0:03:29]} Qb7+ {[%emt 0:01:26]} 16. f3 {[%emt 0:05:13]} c5 {[%emt 0:00:52]} 17. Nf5 {[%emt 0:02:12]} Raf8 {[%emt 0:10:12]} 18. Qe2 {[%emt 0:21:35]} Nfg4 {[%emt 0:20:12]} 19. e4 {[%emt 0:01:58]} Nf6 {[%emt 0:00:51]} 20. Bf4 {[%emt 0:03:28]} Kh8 {[%emt 0:04:58]} 21. Rad1 {[%emt 0:04:15]} Qc6 {[%emt 0:03:38]} 22. Kg1 {[%emt 0:02:51]} Nh5 {[%emt 0:00:42]} 23. Bxe5 {[%emt 0:06:59]} dxe5 {[%emt 0:00:01]} 24. f4 {[%emt 0:01:00]} Qc7 {[%emt 0:03:47]} 25. Nxe7 {[%emt 0:00:44]} Qxe7 {[%emt 0:00:28]} 26. Qxh5 {[%emt 0:00:15]} exf4 {[%emt 0:00:14]} 27. gxf4 {[%emt 0:01:02]} Rxf4 {[%emt 0:00:23]} 28. Rxf4 {[%emt 0:00:28]} Rxf4 {[%emt 0:00:02]} 29. Nd5 {[%emt 0:00:23]} Qxe4 {[%emt 0:00:30]} 30. Nxf4 {[%emt 0:00:21]} Qe3+ {[%emt 0:00:02]} 31. Kh1 {[%emt 0:00:24]} Qe4+ {[%emt 0:00:24]} 32. Ng2 {[%emt 0:00:16]} g6 {[%emt 0:00:03]} 33. Qh4 {[%emt 0:01:11]} Qe6 {[%emt 0:00:36]} 34. Qd8+ {[%emt 0:00:15]} Kg7 {[%emt 0:00:02]} 35. Rd7+ {[%emt 0:00:21]} Qxd7 {[%emt 0:00:10]} 36. Qxd7+ {[%emt 0:00:06]} Kf6 {[%emt 0:00:02]} 37. Qd6+ {[%emt 0:00:13]} Kf5 {[%emt 0:00:06]} 38. Qxb6 {[%emt 0:00:10]} h5 {[%emt 0:00:14]} 39. Qxc5+ {[%emt 0:00:06]} Kg4 {[%emt 0:00:10]} 40. Qxa5 {[%emt 0:00:00]} g5 {[%emt 0:00:00]} 41. Ne3+ {[%emt 0:00:46]} Kf4 {[%emt 0:00:11]} 42. Qf5+ {[%emt 0:00:08]} Kxe3 {[%emt 0:00:05]} 43. Qxg5+ {[%emt 0:00:07]} Kd4 {[%emt 0:00:04]} 44. c5 {[%emt 0:00:09]} Kc3 {[%emt 0:00:02]} 45. c6 {[%emt 0:00:05]} Kxb3 {[%emt 0:00:05]} 46. c7 {[%emt 0:00:03]} Kxa3 {[%emt 0:00:08]} 47. c8=Q {[%emt 0:00:09]} Kb4 {[%emt 0:00:06]} 48. Qgc5+ {[%emt 0:00:12]} Ka4 {[%emt 0:00:10]} 49. Qb7 {[%emt 0:00:10]} h4 {[%emt 0:00:08]} 50. Qca7# {[%emt 0:00:10]} 1-0

[Event "IIFL Wealth  4th Mumbai Junior U-13"]
[Site "Mumbai"]
[Date "2019.01.05"]
[Round "7"]
[White "Adireddy Tarun"]
[Black "Vishal Shewale"]
[Result "1-0"]
[ECO "E91"]
[WhiteElo "1553"]
[BlackElo "1287"]
[Annotator "NA RC"]
[PlyCount "76"]
[EventDate "2018.12.30"]
[EventType "swiss"]
[EventCountry "IND"]
[SourceTitle "playchess.com"]
[Source "ChessBase"]
[SourceQuality "1"]
[TimeControl "40/5400+30:1800+30"]

1. d4 {[%emt 0:01:12]} Nf6 {[%emt 0:00:00]} 2. c4 {[%emt 0:00:08]} g6 {[%emt 0:00:05]} 3. Nc3 {[%emt 0:00:09]} Bg7 {[%emt 0:00:16]} 4. e4 {[%emt 0:00:08]} d6 {[%emt 0:00:15]} 5. Nf3 {[%emt 0:00:05]} O-O {[%emt 0:00:14]} 6. Be2 {[%emt 0:00:05]} Na6 {[%emt 0:00:15]} 7. O-O {[%emt 0:10:42]} e5 {[%emt 0:00:07]} 8. d5 {[%emt 0:02:06]} Nc5 {[%emt 0:00:53]} 9. Qc2 {[%emt 0:04:28]} a5 {[%emt 0:00:33]} 10. Be3 {[%emt 0:09:03]} Ne8 {[%emt 0:03:57]} 11. Ne1 {[%emt 0:04:27]} f5 {[%emt 0:01:42]} 12. f3 {[%emt 0:00:38]} f4 {[%emt 0:00:35]} 13. Bf2 {[%emt 0:00:06]} g5 {[%emt 0:05:57]} 14. Rb1 {[%emt 0:11:49]} h5 {[%emt 0:06:57]} 15. a3 {[%emt 0:07:13]} g4 {[%emt 0:07:10]} 16. b4 {[%emt 0:04:03]} Na6 {[%emt 0:00:48]} 17. g3 {[%emt 0:07:24]} gxf3 {[%emt 0:14:27]} 18. Nxf3 {[%emt 0:03:57]} Bh3 {[%emt 0:03:17]} 19. Rfd1 {[%emt 0:01:11]} axb4 {[%emt 0:01:31]} 20. axb4 {[%emt 0:00:10]} Bg4 {[%emt 0:01:14]} 21. Rd3 {[%emt 0:06:42]} Bh6 {[%emt 0:10:54]} 22. b5 {[%emt 0:03:23]} Nc5 {[%emt 0:04:31]} 23. Bxc5 {[%emt 0:00:11]} Bxf3 {[%emt 0:00:07]} 24. Bxf3 {[%emt 0:00:57]} dxc5 {[%emt 0:00:08]} 25. Bxh5 {[%emt 0:00:33]} Nd6 {[%emt 0:00:22]} 26. gxf4 {[%emt 0:05:25]} Rxf4 {[%emt 0:06:08]} 27. Rg3+ {[%emt 0:08:47]} Kf8 {[%emt 0:01:08]} 28. Qg2 {[%emt 0:01:00]} Ke7 {[%emt 0:01:47]} 29. Qh3 {[%emt 0:07:00]} Qc8 {[%emt 0:09:17]} 30. Bg4 {[%emt 0:00:15]} Qh8 {[%emt 0:00:11]} 31. Bd7 {[%emt 0:01:26]} Qf6 {[%emt 0:04:09]} 32. Kh1 {[%emt 0:00:27]} Rh4 {[%emt 0:01:27]} 33. Qe6+ {[%emt 0:00:39]} Qxe6 {[%emt 0:00:11]} 34. dxe6 {[%emt 0:00:19]} Nxc4 {[%emt 0:02:09]} 35. Rd1 {[%emt 0:00:40]} Bd2 {[%emt 0:02:00]} 36. Nd5+ {[%emt 0:00:27]} Kd6 {[%emt 0:00:12]} 37. Ne3 {[%emt 0:00:07]} Rxe4 {[%emt 0:01:33]} 38. Nxc4+ {[%emt 0:00:36]} Kd5 1-0

[Event "IIFL Wealth  4th Mumbai Junior U-13"]
[Site "Mumbai"]
[Date "2019.01.05"]
[Round "7"]
[White "Bajaj Prakhar"]
[Black "Jain Kashish Manoj"]
[Result "0-1"]
[ECO "E92"]
[WhiteElo "1551"]
[BlackElo "1853"]
[Annotator "NA RC"]
[PlyCount "108"]
[EventDate "2018.12.30"]
[EventType "swiss"]
[EventCountry "IND"]
[SourceTitle "playchess.com"]
[Source "ChessBase"]
[SourceQuality "1"]
[TimeControl "40/5400+30:1800+30"]

1. d4 {[%emt 0:00:00]} Nf6 {[%emt 0:00:00]} 2. Nf3 {[%emt 0:00:00]} g6 {[%emt 0:00:00]} 3. c4 {[%emt 0:00:00]} Bg7 {[%emt 0:00:00]} 4. Nc3 {[%emt 0:00:00]} O-O {[%emt 0:00:03]} 5. e4 {[%emt 0:00:00]} d6 {[%emt 0:00:13]} 6. Be2 {[%emt 0:00:40]} e5 {[%emt 0:00:06]} 7. dxe5 {[%emt 0:02:27]} dxe5 {[%emt 0:00:02]} 8. Qxd8 {[%emt 0:01:12]} Rxd8 {[%emt 0:00:01]} 9. Bg5 {[%emt 0:00:41]} c6 {[%emt 0:00:15]} 10. O-O {LiveBook: 23 Games} h6 11. Rad1 {[%emt 0:21:23]} Re8 {[%emt 0:11:52]} 12. Bxf6 {[%emt 0:07:38]} ({White should play} 12. Be3 $11) 12... Bxf6 {[%emt 0:00:02]} 13. Rd2 {[%emt 0:00:13]} Na6 {[%emt 0:00:38]} 14. Bd3 $146 {[%emt 0:10:04] E94: King's Indian: Classical: 6 Be2 e5 7 0-0: Various Black 7th moves} ({Predecessor:} 14. Rfd1 Kg7 15. h3 Nc5 16. Bf1 Ne6 17. Ne2 Ng5 18. Nxg5 Bxg5 19. Rd6 Be7 20. R6d2 Be6 21. b3 Rad8 22. Rxd8 Rxd8 23. Rxd8 Bxd8 {0-1 (49) Corish,A-Richardson,K (2220) Port Erin 2004}) 14... Bg4 {[%emt 0:06:12]} 15. Bc2 {[%emt 0:09:30]} Bxf3 {[%emt 0:05:24]} 16. gxf3 {[%emt 0:00:06]} Nc5 {[%emt 0:00:13]} 17. Rfd1 {[%emt 0:04:50]} Ne6 {[%emt 0:05:31]} 18. Ne2 {[%emt 0:02:19]} a5 {[%emt 0:01:16]} 19. Kg2 {[%emt 0:06:09]} a4 {[%emt 0:06:18]} 20. Nc3 {[%emt 0:06:37]} Bg5 {[%emt 0:00:34]} 21. Rd7 {[%emt 0:02:14]} Nc5 {[%emt 0:00:11]} 22. R7d6 {[%emt 0:00:09]} Bd8 {[%emt 0:03:06]} 23. a3 {[%emt 0:11:44]} Bc7 {[%emt 0:04:28]} 24. R6d2 {[%emt 0:00:07]} Ba5 {[%emt 0:00:12]} 25. Rd6 {[%emt 0:05:21]} Bc7 {[%emt 0:07:42]} ({Better is} 25... Bd8 $15) 26. R6d2 {[%emt 0:01:11]} Kf8 {[%emt 0:00:06]} 27. Kf1 {[%emt 0:04:02]} h5 {[%emt 0:09:35]} 28. Ke2 {[%emt 0:00:30]} Bb6 {[%emt 0:01:18]} 29. Kf1 {[%emt 0:00:38]} Ke7 {[%emt 0:02:30]} 30. Kg2 {[%emt 0:01:06]} Ba5 {[%emt 0:02:44]} 31. Kf1 {[%emt 0:00:47]} Bxc3 {[%emt 0:02:46]} 32. bxc3 {[%emt 0:00:01]} Red8 {[%emt 0:01:39]} 33. Rxd8 {[%emt 0:00:06]} Rxd8 {[%emt 0:00:01]} 34. Rxd8 {[%emt 0:00:02]} Kxd8 {[%emt 0:00:07]} 35. Ke2 {[%emt 0:00:15]} Kc7 {[%emt 0:01:00]} 36. Kd2 {[%emt 0:02:13]} Kd6 {[%emt 0:00:39]} 37. Bd1 {[%emt 0:00:29]} Nb3+ {[%emt 0:02:06]} 38. Kd3 {[%emt 0:01:29]} Kc5 {[%emt 0:00:10]} 39. Bc2 {[%emt 0:00:38]} f6 {[%emt 0:00:50]} 40. Bd1 {[%emt 0:00:00]} h4 {[%emt 0:00:00]} 41. h3 {[%emt 0:04:23]} Na5 {[%emt 0:01:00]} 42. Bxa4 Nxc4 {[%emt 0:00:03]} 43. Bb3 {[%emt 0:00:24]} Nxa3 {[%emt 0:00:04]} 44. Bf7 {[%emt 0:00:44]} g5 {[%emt 0:00:04]} 45. Bb3 {[%emt 0:00:19]} Nb5 {[%emt 0:01:05]} 46. Bg8 {[%emt 0:00:12]} Nd6 {[%emt 0:00:17]} 47. Bb3 {[%emt 0:00:18]} b5 {[%emt 0:00:06]} 48. Bg8 {[%emt 0:01:00]} b4 {[%emt 0:00:39]} 49. c4 {[%emt 0:00:17]} Nb7 {[%emt 0:00:19]} 50. Bf7 {[%emt 0:00:58]} Na5 {[%emt 0:00:08]} 51. Bg8 {[%emt 0:00:15]} Nb3 {[%emt 0:00:07]} 52. Bf7 {[%emt 0:00:08]} Nd4 {[%emt 0:00:12]} 53. Bh5 {[%emt 0:00:06]} Kb6 {[%emt 0:00:38]} 54. Bg4 $19 {[%emt 0:00:14]} Ka5 {[%emt 0:00:06] Kxd4} 0-1

[Event "IIFL Wealth  4th Mumbai Junior U-13"]
[Site "Mumbai"]
[Date "2019.01.05"]
[Round "7"]
[White "Mahi Amit Doshi"]
[Black "Tawade Arnav"]
[Result "0-1"]
[ECO "D00"]
[WhiteElo "1551"]
[BlackElo "1285"]
[Annotator "NA RC"]
[PlyCount "119"]
[EventDate "2018.12.30"]
[EventType "swiss"]
[EventCountry "IND"]
[SourceTitle "playchess.com"]
[Source "ChessBase"]
[SourceQuality "1"]
[TimeControl "40/5400+30:1800+30"]

1. d4 {[%emt 0:00:27]} d5 {[%emt 0:00:00]} 2. Bf4 {[%emt 0:00:19]} Nf6 {[%emt 0:00:00]} 3. e3 {[%emt 0:00:02]} c5 {[%emt 0:00:00]} 4. c3 {[%emt 0:00:16]} Nc6 {[%emt 0:00:08]} 5. Nd2 {[%emt 0:00:26]} Bf5 {[%emt 0:01:55]} 6. Ngf3 {[%emt 0:00:47]} e6 {[%emt 0:03:33]} 7. Be2 {[%emt 0:02:56]} Qb6 {[%emt 0:03:47]} 8. Qc1 {[%emt 0:15:12]} h6 {[%emt 0:06:51]} 9. h3 {[%emt 0:01:45]} c4 {[%emt 0:02:29]} 10. O-O {[%emt 0:01:54]} Be7 {[%emt 0:00:58]} 11. Ne5 {[%emt 0:07:41]} Nxe5 {[%emt 0:01:50]} 12. Bxe5 {[%emt 0:00:28]} Qc6 {[%emt 0:12:04]} 13. Re1 {[%emt 0:02:22]} O-O {[%emt 0:01:25]} 14. Bd1 {[%emt 0:03:19]} b5 {[%emt 0:06:07]} 15. a3 {[%emt 0:03:21]} a5 {[%emt 0:01:43]} 16. Bc2 {[%emt 0:02:21]} Bxc2 {[%emt 0:01:31]} 17. Qxc2 {[%emt 0:00:18]} Nd7 {[%emt 0:09:18]} 18. Bg3 {[%emt 0:01:38]} Bd6 {[%emt 0:14:31]} 19. Bxd6 {[%emt 0:01:34]} Qxd6 {[%emt 0:00:10]} 20. e4 {[%emt 0:01:43]} Rfb8 {[%emt 0:01:36]} 21. e5 {[%emt 0:02:24]} Qb6 {[%emt 0:04:34]} 22. b4 {[%emt 0:06:09]} axb4 {[%emt 0:01:31]} 23. axb4 {[%emt 0:00:21]} Ra6 {[%emt 0:01:44]} 24. Qb2 {[%emt 0:00:44]} Rba8 {[%emt 0:01:15]} 25. Nf1 {[%emt 0:04:56]} Qa7 {[%emt 0:05:33]} 26. Rxa6 {[%emt 0:01:11]} Qxa6 {[%emt 0:00:01]} 27. Ne3 {[%emt 0:02:02]} Qa2 {[%emt 0:03:41]} 28. Qxa2 {[%emt 0:02:01]} Rxa2 {[%emt 0:00:02]} 29. Rc1 {[%emt 0:00:36]} Nb6 {[%emt 0:04:39]} 30. Kf1 {[%emt 0:00:01]} Na4 {[%emt 0:00:34]} 31. Ke1 {[%emt 0:10:21]} Nb6 {[%emt 0:03:04]} 32. Nc2 {[%emt 0:03:12]} Na4 {[%emt 0:01:07]} 33. Kd2 {[%emt 0:01:02]} Kf8 {[%emt 0:01:09]} 34. Ra1 {[%emt 0:04:03]} Rxa1 {[%emt 0:01:54]} 35. Nxa1 {[%emt 0:00:03]} Nb6 {[%emt 0:00:10]} 36. Nc2 {[%emt 0:00:04]} Na8 {[%emt 0:00:04]} 37. Ke3 {[%emt 0:01:21]} Ke7 {[%emt 0:00:38]} 38. Kf4 {[%emt 0:01:26]} g6 {[%emt 0:02:46]} 39. Ne3 {[%emt 0:00:41]} Nb6 {[%emt 0:00:16]} 40. Nd1 {[%emt 0:00:00]} Na4 {[%emt 0:00:00]} 41. Ke3 {[%emt 0:03:08]} Nb6 {[%emt 0:02:23]} 42. Kd2 {[%emt 0:01:18]} Na4 {[%emt 0:01:18]} 43. Kc2 {[%emt 0:00:48]} Kf8 {[%emt 0:02:02]} 44. Ne3 {[%emt 0:00:12]} h5 {[%emt 0:03:55]} 45. g4 {[%emt 0:03:17]} Kg7 {[%emt 0:02:28]} 46. f4 {[%emt 0:02:40]} Nb6 {[%emt 0:02:42]} 47. Kd2 {[%emt 0:00:35]} Kh6 {[%emt 0:09:45]} 48. gxh5 {[%emt 0:03:07]} Kxh5 {[%emt 0:05:57]} 49. Ng4 {[%emt 0:01:54]} Nd7 {[%emt 0:01:36]} 50. Ke3 {[%emt 0:01:31]} Kh4 {[%emt 0:07:03]} 51. Nh2 {[%emt 0:06:52]} Kxh3 {[%emt 0:00:41]} 52. Nf3 {[%emt 0:00:27]} f6 {[%emt 0:00:13]} 53. exf6 {[%emt 0:01:18]} Nxf6 {[%emt 0:00:03]} 54. Ng5+ {[%emt 0:00:06]} Kg4 {[%emt 0:00:43]} 55. Nxe6 {[%emt 0:00:04]} Ne4 {[%emt 0:00:09]} 56. Nc7 Nxc3 57. Kd2 Ne4+ 58. Ke3 c3 59. Nxb5 c2 60. Nc7 0-1

[Event "IIFL Wealth  4th Mumbai Junior U-13"]
[Site "Mumbai"]
[Date "2019.01.05"]
[Round "7"]
[White "Jain Adi"]
[Black "Sushanth Kamabathula"]
[Result "1-0"]
[ECO "A09"]
[WhiteElo "1545"]
[BlackElo "1267"]
[Annotator "NA RC"]
[PlyCount "65"]
[EventDate "2018.12.30"]
[EventType "swiss"]
[EventCountry "IND"]
[SourceTitle "playchess.com"]
[Source "ChessBase"]
[SourceQuality "1"]
[TimeControl "40/5400+30:1800+30"]

1. Nf3 {[%emt 0:00:00]} d5 {[%emt 0:00:05]} 2. c4 {[%emt 0:00:03]} d4 {[%emt 0:00:11]} 3. g3 {[%emt 0:00:56]} Nc6 {[%emt 0:00:40]} 4. d3 {[%emt 0:01:23]} e5 {[%emt 0:02:57]} 5. Bg2 {[%emt 0:01:22]} Be6 {[%emt 0:01:24]} 6. O-O {[%emt 0:02:28]} f6 {[%emt 0:00:47]} 7. Re1 {[%emt 0:14:47]} Qd7 {[%emt 0:00:57]} 8. Bd2 {[%emt 0:06:58]} O-O-O {[%emt 0:05:23]} 9. Qa4 {[%emt 0:03:38]} Kb8 {[%emt 0:01:13]} 10. a3 {[%emt 0:05:05]} g5 {[%emt 0:13:36]} 11. Rc1 {[%emt 0:04:05]} h5 {[%emt 0:11:59]} 12. b4 {[%emt 0:06:57]} a6 {[%emt 0:11:22]} 13. Qc2 {[%emt 0:04:18]} Na7 {[%emt 0:00:45]} 14. a4 {[%emt 0:09:54]} h4 {[%emt 0:06:06]} 15. b5 {[%emt 0:00:58]} axb5 {[%emt 0:00:50]} 16. axb5 {[%emt 0:00:19]} Bc5 {[%emt 0:00:21]} 17. Qa2 {[%emt 0:00:15]} Qd6 {[%emt 0:01:06]} 18. Bb4 {[%emt 0:02:06]} hxg3 {[%emt 0:05:28]} 19. hxg3 {[%emt 0:01:11]} Ne7 {[%emt 0:06:21]} 20. Nfd2 {[%emt 0:03:48]} Nec8 {[%emt 0:00:26]} 21. Ne4 {[%emt 0:00:10]} Bxb4 {[%emt 0:01:50]} 22. Nxd6 {[%emt 0:00:28]} Bxd6 {[%emt 0:00:08]} 23. Nd2 {[%emt 0:01:00]} f5 {[%emt 0:00:21]} 24. Nb3 {[%emt 0:00:21]} Bd7 {[%emt 0:09:35]} 25. c5 {[%emt 0:00:14]} Be7 {[%emt 0:00:11]} 26. b6 {[%emt 0:00:18]} c6 {[%emt 0:01:02]} 27. bxa7+ {[%emt 0:00:05]} Ka8 {[%emt 0:00:05]} 28. Na5 {[%emt 0:00:11]} Rh7 {[%emt 0:01:03]} 29. Qb2 {[%emt 0:00:09]} b6 {[%emt 0:00:22]} 30. cxb6 {[%emt 0:00:15]} Rh6 {[%emt 0:01:10]} 31. b7+ {[%emt 0:00:03]} Kxa7 {[%emt 0:00:05]} 32. b8=Q+ {[%emt 0:00:08]} Ka6 {[%emt 0:00:08]} 33. Nxc6+ {[%emt 0:00:03]} 1-0

[Event "IIFL Wealth  4th Mumbai Junior U-13"]
[Site "Mumbai"]
[Date "2019.01.05"]
[Round "7"]
[White "Kshatriya Nitin Vekhande"]
[Black "Rout Yashita"]
[Result "1-0"]
[ECO "C68"]
[WhiteElo "1544"]
[BlackElo "1264"]
[Annotator "NA RC"]
[PlyCount "143"]
[EventDate "2018.12.30"]
[EventType "swiss"]
[EventCountry "IND"]
[SourceTitle "playchess.com"]
[Source "ChessBase"]
[SourceQuality "1"]
[TimeControl "40/5400+30:1800+30"]

1. e4 {[%emt 0:00:00]} e5 {[%emt 0:01:10]} 2. Nf3 {[%emt 0:00:00]} Nc6 {[%emt 0:00:14]} 3. Bb5 {[%emt 0:00:34]} a6 {[%emt 0:00:01]} 4. Bxc6 {[%emt 0:00:46]} dxc6 {[%emt 0:00:11]} 5. d4 {[%emt 0:00:15]} exd4 {[%emt 0:00:14]} 6. Qxd4 {[%emt 0:00:18]} Qxd4 {[%emt 0:00:15]} 7. Nxd4 {[%emt 0:00:08]} Bd7 {[%emt 0:02:12]} 8. Be3 {[%emt 0:00:15]} O-O-O {[%emt 0:01:30]} 9. Nd2 {[%emt 0:00:33]} Kb8 {[%emt 0:06:48]} 10. O-O-O {[%emt 0:01:10]} Be7 {[%emt 0:10:58]} 11. c3 {[%emt 0:10:14]} Nf6 {[%emt 0:00:50]} 12. f3 {[%emt 0:01:03]} Rhe8 {[%emt 0:02:12]} 13. Bf2 {[%emt 0:13:12]} h6 {[%emt 0:02:19]} 14. Nf1 {[%emt 0:06:25]} Bd6 {[%emt 0:04:05]} 15. Ng3 {[%emt 0:04:34]} Bf4+ {[%emt 0:01:30]} 16. Kb1 {[%emt 0:01:21]} g6 {[%emt 0:01:33]} 17. Nge2 {[%emt 0:04:32]} Bd6 {[%emt 0:01:15]} 18. Bh4 {[%emt 0:12:09]} Be7 {[%emt 0:02:49]} 19. h3 {[%emt 0:03:46]} Kc8 {[%emt 0:08:24]} 20. Bg3 {[%emt 0:09:39]} Bd6 {[%emt 0:07:06]} 21. Nc2 {[%emt 0:11:59]} Bxg3 {[%emt 0:00:53]} 22. Nxg3 {[%emt 0:00:07]} h5 {[%emt 0:08:26]} 23. h4 {[%emt 0:04:23]} Kb8 {[%emt 0:01:09]} 24. Rd2 {[%emt 0:01:16]} Kc8 {[%emt 0:02:11]} 25. Rhd1 {[%emt 0:00:46]} Be6 {[%emt 0:03:09]} 26. Rxd8+ {[%emt 0:03:11]} Rxd8 {[%emt 0:00:07]} 27. Rxd8+ {[%emt 0:00:03]} Kxd8 {[%emt 0:00:01]} 28. a3 {[%emt 0:00:09]} Kd7 {[%emt 0:00:42]} 29. Kc1 {[%emt 0:00:13]} Kd6 {[%emt 0:01:09]} 30. Kd2 {[%emt 0:00:38]} Nd7 {[%emt 0:00:45]} 31. Ne3 {[%emt 0:07:30]} Nb6 {[%emt 0:03:59]} 32. Nh1 {[%emt 0:01:05]} Ke5 {[%emt 0:02:10]} 33. g3 {[%emt 0:00:18]} Kd6 {[%emt 0:07:27]} 34. Nf2 {[%emt 0:00:25]} Nd7 {[%emt 0:00:53]} 35. f4 {[%emt 0:00:21]} Nf8 {[%emt 0:00:36]} 36. c4 {[%emt 0:00:59]} c5 {[%emt 0:01:49]} 37. Kc3 {[%emt 0:00:36]} c6 {[%emt 0:00:28]} 38. Nd3 {[%emt 0:00:50]} b6 {[%emt 0:01:01]} 39. f5 {[%emt 0:00:41]} Bc8 {[%emt 0:01:45]} 40. b3 {[%emt 0:00:00]} Nd7 {[%emt 0:00:00]} 41. g4 {[%emt 0:12:48]} Ne5 {[%emt 0:05:08]} 42. gxh5 {[%emt 0:11:11]} gxh5 {[%emt 0:00:43]} 43. Ng2 {[%emt 0:00:14]} Nf3 {[%emt 0:04:12]} 44. Ngf4 {[%emt 0:01:42]} Nxh4 {[%emt 0:00:26]} 45. Nxh5 {[%emt 0:00:08]} Nf3 {[%emt 0:01:03]} 46. Nf6 {[%emt 0:00:58]} Ne5 {[%emt 0:00:46]} 47. Ne8+ {[%emt 0:00:44]} Ke7 {[%emt 0:00:13]} 48. Nxe5 {[%emt 0:00:44]} Kxe8 {[%emt 0:00:05]} 49. Kd3 {[%emt 0:01:45]} Bb7 {[%emt 0:03:09]} 50. a4 {[%emt 0:00:58]} f6 {[%emt 0:00:40]} 51. Ng4 {[%emt 0:00:10]} Ke7 {[%emt 0:00:07]} 52. Ke3 {[%emt 0:01:42]} Kf7 {[%emt 0:00:30]} 53. Kf4 {[%emt 0:00:06]} Ke7 {[%emt 0:00:40]} 54. e5 {[%emt 0:00:35]} fxe5+ {[%emt 0:00:19]} 55. Kxe5 {[%emt 0:00:02]} b5 {[%emt 0:00:48]} 56. Nf2 {[%emt 0:00:21]} bxa4 {[%emt 0:00:10]} 57. bxa4 {[%emt 0:00:06]} a5 {[%emt 0:00:36]} 58. Ne4 {[%emt 0:00:15]} Ba6 {[%emt 0:00:07]} 59. Nd6 {[%emt 0:00:36]} Kf8 {[%emt 0:01:26]} 60. f6 {[%emt 0:00:11]} Kg8 {[%emt 0:00:30]} 61. Ke6 {[%emt 0:00:16]} Kf8 {[%emt 0:00:15]} 62. f7 {[%emt 0:00:07]} Bc8+ {[%emt 0:00:07]} 63. Nxc8 {[%emt 0:00:37]} Kg7 {[%emt 0:00:24]} 64. Ke7 {[%emt 0:00:49]} Kh7 {[%emt 0:00:06]} 65. f8=Q {[%emt 0:00:14]} Kg6 {[%emt 0:00:04]} 66. Qf6+ {[%emt 0:00:08]} Kh5 {[%emt 0:00:05]} 67. Qg7 {[%emt 0:00:04]} Kh4 {[%emt 0:00:05]} 68. Kf6 {[%emt 0:00:03]} Kh3 {[%emt 0:00:09]} 69. Qg1 {[%emt 0:00:12]} Kh4 {[%emt 0:00:03]} 70. Kf5 {[%emt 0:00:14]} Kh3 {[%emt 0:00:06]} 71. Kf4 {[%emt 0:00:06]} Kh4 {[%emt 0:00:02]} 72. Qg4# {[%emt 0:00:06]} 1-0

[Event "IIFL Wealth  4th Mumbai Junior U-13"]
[Site "Mumbai"]
[Date "2019.01.05"]
[Round "7"]
[White "Rushyendra Chowdary Kantipudi"]
[Black "Gosrani, Reeyan"]
[Result "1-0"]
[ECO "C68"]
[WhiteElo "1527"]
[BlackElo "1190"]
[Annotator "NA RC"]
[PlyCount "47"]
[EventDate "2018.12.30"]
[EventType "swiss"]
[EventCountry "IND"]
[SourceTitle "playchess.com"]
[Source "ChessBase"]
[SourceQuality "1"]
[TimeControl "40/5400+30:1800+30"]

1. e4 {[%emt 0:00:00]} e5 {[%emt 0:00:00]} 2. Nf3 {[%emt 0:00:00]} Nc6 {[%emt 0:00:00]} 3. Bb5 {[%emt 0:00:00]} a6 {[%emt 0:00:13]} 4. Bxc6 {[%emt 0:00:00]} dxc6 {[%emt 0:00:47]} 5. O-O {[%emt 0:00:14]} Bd6 {[%emt 0:00:19]} 6. d3 {[%emt 0:00:06]} Nf6 {[%emt 0:01:02]} 7. Nbd2 {[%emt 0:02:49]} Be6 {[%emt 0:00:33]} 8. h3 {[%emt 0:02:42]} Qd7 {[%emt 0:01:05]} 9. d4 {[%emt 0:10:29]} exd4 {[%emt 0:01:12]} 10. e5 {[%emt 0:00:04]} Bxe5 {[%emt 0:01:48]} 11. Nxe5 {[%emt 0:01:29]} Qd6 {[%emt 0:00:27]} 12. Ndc4 {[%emt 0:00:05]} Qc5 {[%emt 0:03:11]} 13. Re1 {[%emt 0:03:14]} O-O-O {[%emt 0:00:39]} 14. b3 {[%emt 0:04:09]} Bxc4 {[%emt 0:03:02]} 15. Nxc4 {[%emt 0:00:26]} b5 {[%emt 0:01:00]} 16. Ne5 {[%emt 0:01:51]} Rhf8 {[%emt 0:04:02]} 17. Nd3 {[%emt 0:00:14]} Qd6 {[%emt 0:00:52]} 18. Bf4 {[%emt 0:00:05]} Qd7 {[%emt 0:03:03]} 19. Qd2 {[%emt 0:01:21]} Rfe8 {[%emt 0:02:25]} 20. Qa5 {[%emt 0:00:32]} Nd5 {[%emt 0:02:11]} 21. Nc5 {[%emt 0:00:56]} Rxe1+ {[%emt 0:04:26]} 22. Rxe1 {[%emt 0:00:07]} Qf5 {[%emt 0:01:34]} 23. Qxa6+ {[%emt 0:00:12]} Kb8 {[%emt 0:17:00]} 24. Qb7# {[%emt 0:00:00]} 1-0